Cogmind - Beta 15 @@@ ROGUE MODE // 2025.06.25 @ 03:32:10 Player: Mogwok Wargfriend Result: Destroyed by Q1-1GZ(x) with Makeshift Spear Performance ------------- Evolutions (0) 0 Regions Visited (3) 600 Robots Destroyed (21) 105 Value Destroyed (559) 559 Prototype IDs (7) 140 Alien Tech Used (0) 0 Bonus (300) 300 TOTAL SCORE: 1704 Bonus ------- Registered with UFD 300 Cogmind --------- Core Integrity 0/250 Matter 297/300 Energy 100/100 System Corruption 0% Temperature Cool (0) Movement Core (350) Ox6 Location -9/Scraptown Parts ------- > --- POWER (1) -------- Improved Ion Engine > --- PROPULSION (2) --- Armored Huge Wheel > --- UTILITY (2) ------ Small Storage Unit Hardened Light Armor Plating > --- WEAPON (2) ------- Riot Gun > --- INVENTORY (8) ---- Angular Momentum Engine Mapping Drone Bay (3/3) Cobbler Unit Medium Laser Hypervelocity Gauss Rifle Battle Cannon Scrap Shield Fragment (50) Peak State ------------ > --- POWER ------------ Improved Ion Engine > --- PROPULSION ------- Armored Huge Wheel > --- UTILITY ---------- Small Storage Unit Makeshift Hacking Suite > --- WEAPON ----------- Subdweller Laser Battle Cannon > --- INVENTORY -------- Subdweller Power Source Scrap Shield Cobbler Unit Riot Gun Hypervelocity Gauss Rifle Scrap Shield Fragment [Rating: 21] Favorites ----------- Power Improved Ion Engine Engine Improved Ion Engine Propulsion Subdweller Monowheel Treads Spiked Treads Wheel Subdweller Monowheel Utility Small Storage Unit Device Subdweller Optics Storage Small Storage Unit Hackware Makeshift Hacking Suite Protection Hardened Light Armor Plating Weapon Subdweller Laser Energy Gun Subdweller Laser Ballistic Gun Assault Rifle Ballistic Cannon Battle Cannon Special Weapon Mining Laser Build | -11 -10 -10 -9 ------- Run | Yrd Mat Sub Scr Slots Evolved . | . . . . Power . | . . . . Propulsion . | . . . . Utility . | . . . . Weapon . | . . . . Parts Attached 37 | 7 2 24 4 Power 4 | 1 1 2 . Engine 4 | 1 1 2 . Core . | . . . . Reactor . | . . . . Propulsion 14 | 2 . 10 2 Treads 1 | . . 1 . Leg . | . . . . Wheel 13 | 2 . 9 2 Hover . | . . . . Flight . | . . . . Utility 9 | 2 1 5 1 Device 5 | 1 . 4 . Storage 1 | 1 . . . Processor . | . . . . Hackware 1 | . . 1 . Protection 2 | . 1 . 1 Artifact . | . . . . Weapon 10 | 2 . 7 1 Energy Gun 4 | 1 . 2 1 Energy Cannon . | . . . . Ballistic Gun 3 | 1 . 2 . Ballistic Cannon 1 | . . 1 . Launcher . | . . . . Special Weapon 2 | . . 2 . Impact Weapon . | . . . . Slashing Weapon . | . . . . Piercing Weapon . | . . . . Special Melee Weapon . | . . . . Unidentified Prototypes . | . . . . Parts Lost 6 | . . 5 1 Power . | . . . . Propulsion 2 | . . 2 . Utility 1 | . . 1 . Weapon 3 | . . 2 1 Highest Loss Streak 1 | . . 1 1 To Critical Strikes . | . . . . Average Backups 5 | 4 7 6 4 Power . | . 1 . . Propulsion . | 2 2 . . Utility 1 | . . 1 2 Weapon 3 | . 4 3 1 Tool/Special . | . . . . Unused Backups 18 | 2 3 4 9 Power 3 | . 1 . 2 Propulsion 4 | 2 2 . . Utility 5 | . . 1 4 Weapon 6 | . . 3 3 Tool/Special . | . . . . Average Slot Usage (%) 93 | . 100 99 85 Engine 14 | . 14 14 14 Treads 1 | . . 2 . Wheel 21 | . 28 25 14 Device 4 | . 10 8 . Storage 14 | . 14 14 14 Hackware 3 | . . 2 4 Protection 5 | . 3 2 9 Energy Gun 13 | . 14 12 13 Ballistic Gun 6 | . 14 10 . Ballistic Cannon 6 | . . 1 13 Special Weapon 1 | . . 2 . Peak Build Rating 21 | 7 9 16 21 Average Rating 14 | 5 8 12 19 On Entrance 8 | . 7 9 16 Naked Turns . | . . . . Heaviest Build 24 | 14 18 22 24 Greatest Support 40 | 20 20 40 40 Greatest Overweight (x) 6 | 2 . 1 6 Average Overweight (x) . | . . . . Largest Inventory Capacity 8 | 8 8 8 8 Average Capacity 7 | 7 8 8 8 Most Carried 8 | 8 8 8 8 Average Carried 7 | 4 7 7 7 Final Capacity 8 | 8 8 8 8 Final Carried 8 | 7 8 8 8 Class Distribution -------------------- 78% | Mutant 21% | Scavenger-Mutant Dominant Class ---------------- Mutant | -10/Materials Mutant | -10/Subcaves Mutant | -9/Scraptown Resources | -11 -10 -10 -9 ----------- Run | Yrd Mat Sub Scr Matter Collected 954 | 282 36 606 30 Remotely . | . . . . Salvage Created 724 | 113 32 579 . Parts 47 | 10 2 35 . Haulers Intercepted . | . . . . Recyclers Shooed . | . . . . Parts Field Recycled . | . . . . Retrieved Matter . | . . . . Parts Self-Destructed 12 | . . 12 . Prevented . | . . . . Kills | -11 -10 -10 -9 ------- Run | Yrd Mat Sub Scr Combat Hostiles Destroyed 17 | . 1 16 . Guns 14 | . 1 13 . Cannons 3 | . . 3 . Classes Destroyed 7 | 2 2 3 . Tunneler 2 | 2 . . . Recycler 1 | 1 . . . Watcher 1 | . 1 . . Swarmer 5 | . 1 4 . Grunt 2 | . . 2 . Sentry 1 | . . 1 . Subdweller 9 | . . 9 . Best Kill Streak 4 | 3 2 4 . Combat Bots Only 4 | . 1 4 . Max Kills in Single Turn 2 | 1 1 2 . Gunslinging 1 | . . 1 . Exploded . | . . . . Melee . | . . . . Uniques/NPCs Destroyed . | . . . . Combat | -11 -10 -10 -9 -------- Run | Yrd Mat Sub Scr Hostile Shots Fired 107 | . 2 90 15 Missed 34 | . 1 30 3 Hits 73 | . 1 60 12 Melee 4 | . . . 4 Projectile 69 | . 1 60 8 Critical Strikes 3 | . . 2 1 Damage Taken 1380 | . 37 1061 282 Core 272 | . 7 181 84 Absorbed by Shields . | . . . . Regen/Repaired (Parts) 421 | . . . 421 Core Remaining (%) 100 | 100 . . . Volleys Fired 131 | 4 2 124 1 Largest 2 | 2 2 2 1 Hottest 160 | 60 60 160 100 Shots Fired 203 | 8 4 190 1 Gun 131 | 8 4 119 . Cannon 7 | . . 7 . Launcher . | . . . . Special 65 | . . 64 1 Kinetic 59 | 4 2 53 . Thermal 144 | 4 2 137 1 Explosive . | . . . . Electromagnetic . | . . . . Robot Hit Streak 16 | 6 2 16 . Robot Miss Streak 5 | . 1 5 . Penetration Max . | . . . . Secondary Targets 3 | . . 3 . Max Gunslinging Chain 1 | . . 1 . Shots Hit Robots 91 | 6 2 83 . Core Hits 34 | 4 2 28 . Critical Kills 1 | . . 1 . Critical Parts Destroyed . | . . . . Critical Strikes 2 | . . 2 . Destroy 2 | . . 2 . Melee Attacks . | . . . . Impact . | . . . . Slashing . | . . . . Piercing . | . . . . Sneak Attacks . | . . . . Combat Hostiles . | . . . . Follow-up Attacks . | . . . . Damage Inflicted 1302 | 67 23 1209 3 Guns 1242 | 67 23 1152 . Cannons 57 | . . 57 . Explosions . | . . . . Melee . | . . . . Ramming 3 | . . . 3 Kinetic 574 | 23 12 539 . Thermal 725 | 44 11 670 . Explosive . | . . . . Electromagnetic . | . . . . Impact . | . . . . Slashing . | . . . . Piercing . | . . . . Highest Corruption . | . . . . Average Corruption . | . . . . Corruption Purged . | . . . . Corruption Blocked . | . . . . Overload Shots . | . . . . Overflow Damage . | . . . . Projectiles . | . . . . Explosions . | . . . . Melee . | . . . . Knockbacks . | . . . . Impact . | . . . . Kinetic . | . . . . Secondary . | . . . . Self-Inflicted Damage 1 | . . . 1 Shots . | . . . . Rammed 3 | . . . 3 Targets Rammed 3 | . . . 3 Kicked . | . . . . Crushed . | . . . . Highest Temperature 44 | . 6 6 44 Average Temperature 13 | . 3 6 22 Received Heat Transfer 336 | . . 264 72 Siege Activations . | . . . . Martial Activations . | . . . . Shielding Activations . | . . . . Robots Disrupted . | . . . . Combat Hostiles . | . . . . Robots Corrupted . | . . . . Combat Hostiles . | . . . . Parts Fried . | . . . . Impact Corruptions . | . . . . Robots Melted . | . . . . Combat Hostiles . | . . . . Parts Melted 2 | . . 2 . Heat Transferred 1050 | 100 25 925 . Parts Sabotaged . | . . . . Parts Stolen . | . . . . Parts Stripped . | . . . . Power Chain Reactions . | . . . . Alert | -11 -10 -10 -9 ------- Run | Yrd Mat Sub Scr Maximum Alert Level . | . . . . Low Security (%) 100 | 100 100 . . Level 1 . | . . . . Level 2 . | . . . . Level 3 . | . . . . Level 4 . | . . . . Level 5 . | . . . . High Security . | . . . . Max Security . | . . . . Peak Influence 27 | 10 27 . . Initial . | . . . . Average 3 | 2 3 . . Influence Increases 216 | 15 31 170 . Destroy 0b10 Robot/C 160 | . 20 140 . Destroy 0b10 Robot/NC 20 | 15 5 . . Destroy Leader 2 | . 2 . . Successful Hack 4 | . 4 . . Lose Combat Pursuer 30 | . . 30 . Influence Decreases 216 | 15 31 170 . Time Decay 216 | 15 31 170 . Squads Dispatched . | . . . . Investigation . | . . . . Extermination . | . . . . Reinforcement . | . . . . Assault . | . . . . Garrison . | . . . . Intercept . | . . . . Searches Triggered . | . . . . Construction Impeded . | . . . . Haulers Reinforced . | . . . . Active Scanning Responses . | . . . . Cargo Convoy Interrupts . | . . . . Stealth | -11 -10 -10 -9 --------- Run | Yrd Mat Sub Scr Distress Signals . | . . . . Communications Jammed . | . . . . Distress Signals . | . . . . Times Spotted 29 | . 4 22 3 Peak Tracking Total 7 | . 4 6 7 Tactical Retreats 1 | . . 1 . Traps | -11 -10 -10 -9 ------- Run | Yrd Mat Sub Scr Traps Triggered 3 | . 1 2 . Indirectly . | . . . . Trap Hack Attempts . | . . . . Triggered . | . . . . Disarmed . | . . . . Reprogrammed . | . . . . Reused . | . . . . Traps Extracted . | . . . . Installed 1 | . . 1 . Triggered . | . . . . Most Traps Carried 1 | . . 1 . Machines | -11 -10 -10 -9 ---------- Run | Yrd Mat Sub Scr Machines Disabled . | . . . . Max in Single Turn . | . . . . Machines Repaired . | . . . . Machines Dismantled . | . . . . Machines Sabotaged . | . . . . Overloaded Fab Kills . | . . . . Hacking | -11 -10 -10 -9 --------- Run | Yrd Mat Sub Scr Machines Accessed 6 | . 3 . 3 Terminals 2 | . 2 . . Fabricators . | . . . . Repair Stations . | . . . . Recycling Units 1 | . 1 . . Scanalyzers . | . . . . Garrison Access . | . . . . Total Hacks 21 | . 7 . 14 Successful 17 | . 3 . 14 Failed 4 | . 4 . . Catastrophic . | . . . . Database Lockouts . | . . . . Manual 4 | . 4 . . Terminals 4 | . 4 . . Fabricators . | . . . . Repair Stations . | . . . . Recycling Units 3 | . 3 . . Scanalyzers . | . . . . Garrison Access . | . . . . Terminal Hacks 15 | . 1 . 14 Record 14 | . . . 14 Robot Analysis 1 | . 1 . . Fabricator Hacks . | . . . . Repair Station Hacks . | . . . . Recycling Unit Hacks . | . . . . Scanalyzer . | . . . . Garrison Access Hacks . | . . . . Unauthorized Hacks 2 | . 2 . . Terminals 1 | . 1 . . Operators 1 | . 1 . . Fabricators . | . . . . Repair Stations . | . . . . Recycling Units 1 | . 1 . . Reject 1 | . 1 . . Scanalyzers . | . . . . Garrison Access . | . . . . Data Cores Recovered . | . . . . Used . | . . . . Hacking Detections 3 | . 3 . . Full Trace Events . | . . . . Feedback Events . | . . . . Feedback Blocked . | . . . . Robot Schematics Acquired . | . . . . Robots Built . | . . . . Authchips . | . . . . Time . | . . . . Total Robot Build Rating . | . . . . Part Schematics Acquired . | . . . . Parts Built . | . . . . Authchips . | . . . . Time . | . . . . Total Part Build Rating . | . . . . Parts Repaired . | . . . . Time . | . . . . Parts Recycled . | . . . . Recycled Matter . | . . . . Retrieved Matter . | . . . . Retrieved Components . | . . . . Parts Scanalyzed . | . . . . Part Schematics Acquired . | . . . . Parts Damaged . | . . . . Bothacking | -11 -10 -10 -9 ------------ Run | Yrd Mat Sub Scr Used RIF Installer . | . . . . Robots Hacked . | . . . . Non-combat . | . . . . Combat . | . . . . Robot Hacks Applied . | . . . . Relay Couplers Released . | . . . . Fabnet Peak Effective % . | . . . . Robots Rewired . | . . . . Allies Hacked . | . . . . Hacks Repelled . | . . . . Allies | -11 -10 -10 -9 -------- Run | Yrd Mat Sub Scr Total Allies . | . . . . Largest Group . | . . . . Highest-Rated Group . | . . . . Highest-Rated Ally . | . . . . Total Orders . | . . . . Ally Attacks . | . . . . Total Damage . | . . . . Kills . | . . . . Allies Corrupted . | . . . . Allies Melted . | . . . . Intel | -11 -10 -10 -9 ------- Run | Yrd Mat Sub Scr Active Infowar (turns) 863 | 15 147 701 . Optics 701 | . . 701 . Seismic 162 | 15 147 . . Robot Analysis Total 1 | . 1 . . Derelict Logs Recovered 3 | . . 1 2 Drone Launches . | . . . . Drone Recoveries . | . . . . Exploration | -11 -10 -10 -9 ------------- Run | Yrd Mat Sub Scr Turns Passed 5222 | 89 212 2792 2129 Spaces Moved 4497 | 76 220 2130 2071 Core 24 | 22 . . 2 Treads 136 | . . 136 . Legs . | . . . . Wheels 4337 | 54 220 1994 2069 Hover . | . . . . Flight . | . . . . Fastest Speed 50 | 50 80 80 100 Average Speed 99 | 74 80 100 100 Slowest Speed 350 | 150 80 160 350 Overloaded Moves . | . . . . Propulsion Burnouts . | . . . . Robots Hopped . | . . . . Potential Cave-ins . | . . . . Cave-ins Triggered . | . . . . Exploration Rate (%) 55 | 4 46 78 92 Regions Visited 3 Branch Regions 2 Pre-discovered Areas . | . . . . Known Exits Taken . | . . . . Unknown Exits Taken 3 | 1 1 1 . Scrap Searched 8 | . . 4 4 Spaces Dug 6 | . . 6 . Terrain Destroyed 12 | . . 12 . Melee . | . . . . Projectile 12 | . . 12 . AOE . | . . . . Terrain Rammed . | . . . . Walls Destroyed . | . . . . Machines Disabled . | . . . . Actions | -11 -10 -10 -9 --------- Run | Yrd Mat Sub Scr Total 4919 | 97 254 2462 2106 Wait 142 | . 20 116 6 Move 4494 | 75 219 2129 2071 Hop . | . . . . Pick Up 39 | 9 4 17 9 Fast Attach 21 | 7 2 9 3 Attach 11 | . . 10 1 Detach 6 | . . 5 1 Swap 26 | . 1 24 1 Drop 45 | 2 6 27 10 Fire 131 | 4 2 124 1 Melee . | . . . . Ram 3 | . . . 3 Kick . | . . . . Crush . | . . . . Escape Stasis . | . . . . Rewire . | . . . . Trap 1 | . . 1 . Miscellaneous . | . . . . Route ------- -11/Scrapyard -10/Materials (discovered 3 exits: [*Mat] / [*Min] / [*Sub]) -10/Subcaves (discovered 4 exits: [*Mat x2] / [*Rec] / *Scr) -9/Scraptown (discovered 1 exit: [*Fac]) History --------- Turn | Location | Event 6 | -11/Scrapyard | Discovered new exit (range 15) 90 | -11/Scrapyard | Entered Materials 91 | -10/Materials | Met a group of wandering Federalists 168 | -10/Materials | Discovered new exit (range 9) 216 | -10/Materials | Discovered new exit (range 11) 225 | -10/Materials | Discovered new exit (range 13) 300 | -10/Materials | Build established: Mutant 302 | -10/Materials | Entered Subcaves 303 | -10/Subcaves | Continued accompanying wandering Federalists (5) 557 | -10/Subcaves | Wandering Federalist uncovered a shortcut to Scraptown 710 | -10/Subcaves | Ambushed by Subdweller buried in earth 963 | -10/Subcaves | Build established: Scavenger-Mutant 1001 | -10/Subcaves | Discovered new exit (range 13) 1095 | -10/Subcaves | Discovered new exit (range 5) 1286 | -10/Subcaves | Ambushed by Subdwellers from Twisted Machinery 1288 | -10/Subcaves | Core integrity fell below 50% 2375 | -10/Subcaves | Build established: Mutant 2498 | -10/Subcaves | Discovered new exit (range 21) 2504 | -10/Subcaves | Shifting Twisted Machinery released Sub. Monowheel 2505 | -10/Subcaves | Shifting Twisted Machinery released Mak. Hacking Suite 2959 | -10/Subcaves | Shifting Twisted Machinery released Battle Rifle 3094 | -10/Subcaves | Entered Scraptown 3483 | -9/Scraptown | Visited Fellowship of the Rings 3780 | -9/Scraptown | Discovered new exit (range 6) 3868 | -9/Scraptown | Scanned Subdweller tech in exchange for log data 3873 | -9/Scraptown | Learned Factory trap positions 3899 | -9/Scraptown | Visited Symbiants 3928 | -9/Scraptown | Visited Cyclists 3953 | -9/Scraptown | Visited Shadow of the Wyrm 3992 | -9/Scraptown | Visited Supply Room 4030 | -9/Scraptown | Visited CR-KLE's Repair Center 4063 | -9/Scraptown | CR-KLE repaired 6 parts 4102 | -9/Scraptown | Visited IN-MT5's Study 4127 | -9/Scraptown | Visited UFD Registry 4127 | -9/Scraptown | Registered with UFD as "Kinetilever" 4163 | -9/Scraptown | Entered Cyclist Reading Room 4231 | -9/Scraptown | Visited Scrap Suit Storage 4261 | -9/Scraptown | Visited Abandonware Association 4280 | -9/Scraptown | Learned abandonware demo "ERRANTS.EXE" 4310 | -9/Scraptown | Visited Curators Association 4364 | -9/Scraptown | Visited Junk Repository 4406 | -9/Scraptown | Visited Infowarlord's Domain 4420 | -9/Scraptown | Found Exp. Signal Interpreter 4446 | -9/Scraptown | Visited Research Penetration Think Tank 4463 | -9/Scraptown | Visited LU-1G1's Boring Crew 4548 | -9/Scraptown | Visited Observation Area 4592 | -9/Scraptown | Visited Cartography Club 4784 | -9/Scraptown | Delivered Scrap Shield to a Scientist 5196 | -9/Scraptown | Attacked by Scraptown defenders 5219 | -9/Scraptown | Core integrity fell below 20% 5223 | -9/Scraptown | Destroyed by Q1-1GZ(x) with Makeshift Spear Last Messages --------------- 05016_ Acquired Mining Laser. 05024_ Acquired Med. Laser. 05032_ Dropped Med. Laser. 05033_ Acquired Enh. Optical Array. 05041_ Dropped Enh. Optical Array. 05042_ Acquired Med. Laser. 05159_ 8J-I94(c): "Come one, come all! See for yourself a fine selection of the many wondrous pieces in our collection!" 05196_ ANNOUNCEMENT: Intruder alert! Defend Scraptown! 05213_ Slammed into WW-0Q5(j). 05213_ Arm. Huge Wheel broken. 05213_ Destabilizing: Short circuit. 05215_ WW-0Q5(j): "Yet another abomination from the caves." 05216_ Mining Laser destroyed. 05217_ Slammed into WW-0Q5(j). 05220_ Imp. Ion Engine broken. 05220_ Destabilizing: Short circuit. Map ----- +----------------------------------------------------+ | ?????????????????????????????????????????????????? | | ?????????????????????????????????????????????????? | | ?????????????????????????????????????????????????? | | ?????????????????????????????????????????????????? | | ?????????????????????????????????????????????????? | | ?????????????????????????????????????????????????? | | ?????????????????????????????????????????????????? | | ?????????????????????????????????????????????????? | | ?????????????????????????????????????????????????? | | ?????????????????????????????????????????????????? | | ?????????????????????????????????????????????????? | | ?????????????????????????????????????????????????? | | ?????????????????????????????????????????????????? | | ?????????????????????????????????????????????????? | | ?????????????????????????????????????????????????? | | ########????????????? ??????????????????????????? | | """""""#????????????? ?###########??????????????? | | "#????????????? ?# # #??????????????? | | """"" "#????????????# ?# # """ # #??????????????? | | "???" "#??#"????"""?# ## # "#" # #??????????????? | | "???" "#??#" """"# ## # """ # #??????????????? | | "???" "#??# """ " # ## #??????????????? | | "???" "#??# """""" # ## ####### #??????????????? | | """"" "#??# """ ?# ## # # #??????????????? | | "#??# ""# ##x# # #??????????????? | | ""#??? # # @# # #??????????????? | | #?????"""""??# ##j #??????????????? | | ### ####??????# #???# ## #########??????????????? | | ### ########### ##### ## ###########????????????? | | """ """"""""""" """"" "" "##"""""""#????????????? | | "## """"""#????????????? | | "## ""#????????????? | | "## ""#????????????? | | "## ""#????????????? | | "#????????????? | | """"""""""""""""""""" "## ""#????????????? | | """"""""""""""""""""" "## " """"#????????????? | | # ################"" "##########????????????? | | ??????????????#"" "#?????????????????????? | | ?????????????#"" "#?????????????????????? | | " ""?????????????#"" "###########???????????? | | ????????????###"" "## #???????????? | | ??????######## #"" "## #???????????? | | ?? ???? #???????????? | | "" ???? "## #???????????? | | ?????######## #"" "## ! #???????????? | | ""??????????###"" "###########???????????? | | " "" ????????????#"" "#?????????????????????? | | ????????????#"" "#?????????????????????? | | ?????????????#"" "#?????????????????????? | +----------------------------------------------------+ Best States ------------- Heat Dissipation 25 Energy Generation 15 Energy Capacity 265 Matter Stores 300 Matter Capacity 300 Sight Range 21 Terrain Scan Density 10 Armor Coverage 150 Evasion (%) 50 Recoil Reduction 1 Offensive Hacking 11 Item Schematics ----------------- None Robot Schematics ------------------ None Fabricated ------------ Nothing Repaired ---------- Nothing Alien Tech Used ----------------- None Achievements -------------- None Challenges ------------ None Game ------ Seed GravjetGravityMediator Manual? 0 Play Time 00:50:23 Cumulative 233.7 hours Start 2025.06.24 @ 23:59:42 End 2025.06.25 @ 03:32:10 Sessions 2 Manual Loads 0 Difficulty Rogue Special Mode None Game No. 225 Rogue 225 Adventurer 0 Explorer 0 Win Type - Total 1 Types 1/0/0/0/0/0/0/0/0/0 Lore% 61 Gallery% 60 Achievement% 47 Wizard Run 0 Options --------- Layout 2 ASCII 1 Keyboard 1 Movement Numpad Keybinds 0 Fullscreen 2 Font 32/TamsynBold Map View 50x44 Zoom Use 0% Tactical HUD 1 Map Filters NONE Filters NONE Steam 1 RUN: 79bed104-9f17-4460-ba4c-51dcb0e01bc5